bitfinex-derivatives/quotes_SOLF0:USTF0_20260104
["timestamp","ask_amount","ask_price","bid_price","bid_amount"]
[1767570070922,0.95037991,134.09,134.0,6.7191]
[1767570071815,0.95037991,134.11,134.01,106.92066793]
[1767570072422,0.95037991,134.11,134.04,6.7173]
[1767570076325,0.95037991,134.08,133.98,17.5784376]
[1767570076527,0.95037991,134.06,133.98,17.5784376]
[1767570077625,0.95037991,134.06,133.98,24.2985376]
[1767570078122,6.57161699,134.05,133.98,17.5784376]
[1767570078328,0.95037991,134.07,133.98,17.5784376]
[1767570079522,7.66657991,134.07,133.98,17.5784376]
[1767570080524,7.66657991,134.07,133.98,24.2986376]
[1767570083629,0.95037991,134.07,133.99,6.7197]
[1767570091627,0.99167105,134.06,133.97,6.7207]
[1767570091831,0.99167105,134.04,133.97,6.7207]
[1767570092027,0.99167105,134.03,133.97,6.7207]
[1767570092729,0.99167105,134.03,133.93,104.5758]
[1767570093626,0.99167105,134.03,133.96,6.7213]
[1767570093826,0.99167105,134.03,133.93,104.5758]
[1767570094334,0.99167105,134.03,133.95,6.7218]
[1767570095031,0.99167105,134.02,133.95,6.7218]
[1767570096335,0.99167105,134.02,133.92,94.883]
[1767570097426,0.98954517,134.0,133.92,94.883]
[1767570097631,0.98954517,134.0,133.93,6.7228]
[1767570098837,0.98954517,134.0,133.92,88.16]
[1767570099539,7.70894517,134.0,133.91,6.7239]
[1767570100126,0.98954517,133.99,133.91,6.7239]
[1767570100329,0.98954517,134.01,133.92,6.7232]
[1767570101143,2.40606793,134.03,133.94,6.7222]
[1767570101339,93.79277498,134.02,133.94,6.7222]
[1767570101541,88.18,134.02,133.94,6.7222]
[1767570102035,0.98954517,134.02,133.94,6.7222]
[1767570103634,89.16954517,134.04,133.95,6.7217]
[1767570103835,6.7173,134.05,133.96,2.40606793]
[1767570104033,0.98954517,134.06,133.96,2.40606793]
[1767570104544,7.70604517,134.06,133.97,6.7207]
[1767570104736,7.70604517,134.06,133.96,2.40606793]
[1767570104942,0.98954517,134.06,133.96,106.95586793]
[1767570105638,7.70514517,134.08,134.0,6.7191]
[1767570106830,192.6217,134.11,134.0,6.7191]
[1767570106831,7.70424517,134.1,134.0,2.40606793]
[1767570107031,5.61659573,134.09,134.0,2.40606793]
[1767570107342,0.98954517,134.09,133.98,106.94186793]
[1767570108144,0.98954517,134.08,134.0,6.7192]
[1767570113350,0.98954517,134.08,133.98,6.7201]
[1767570113545,0.98954517,134.06,133.98,6.7201]
[1767570116449,0.98954517,134.06,133.99,6.7196]
[1767570116753,7.70424517,134.1,133.99,104.5299]
[1767570116953,5.61594385,134.09,133.99,104.5299]
[1767570117251,7.70424517,134.1,133.99,104.5299]
[1767570117451,5.61644116,134.09,133.99,104.5299]
[1767570117649,7.70424517,134.1,134.02,6.7182]
[1767570117847,5.61644116,134.09,134.02,6.7182]
[1767570118042,7.70424517,134.1,134.02,6.7182]
[1767570118242,5.61644116,134.09,134.02,6.7182]
[1767570118455,7.70424517,134.1,134.02,6.7182]
[1767570118651,6.60672505,134.09,134.02,6.7182]
[1767570118847,0.98954517,134.09,134.02,6.7182]
[1767570129462,7.70454517,134.09,134.01,1.53945304]
[1767570129861,1.00156615,134.08,133.99,1.53945304]
[1767570130650,1.00156615,134.06,133.94,126.9767]
[1767570130862,2.54101919,134.05,133.96,1.53945304]
[1767570131061,1.00156615,134.04,133.96,1.53945304]
[1767570131260,1.00156615,134.04,133.94,194.26615304]
[1767570131866,1.00156615,134.04,133.96,6.7212]
[1767570133669,6.717,134.05,133.97,6.7207]
[1767570135272,7.71856615,134.05,133.97,6.7207]
[1767570135780,1.00156615,134.03,133.96,1.53945304]
[1767570136476,1.00156615,134.03,133.96,8.26075304]
[1767570141283,1.00156615,134.03,133.97,6.7208]
[1767570145780,1.00156615,134.03,133.98,6.7202]
[1767570148086,2.54101919,134.05,133.98,6.7202]
[1767570148391,5.62345865,134.04,133.98,6.7202]
[1767570148691,1.00156615,134.05,133.98,6.7202]
[1767570148987,5.62487594,134.04,133.98,6.7202]
[1767570149290,1.00156615,134.05,133.98,6.7202]
[1767570149478,5.6247548,134.04,133.98,6.7202]
[1767570149679,1.00156615,134.05,133.98,6.7202]
[1767570149889,5.6247548,134.04,133.98,6.7202]
[1767570150088,1.00156615,134.05,133.98,6.7202]
[1767570150290,5.62473675,134.04,133.98,6.7202]
[1767570150492,1.00156615,134.05,133.98,6.7202]
[1767570150692,5.62451341,134.04,133.98,6.7202]
[1767570150986,1.00156615,134.05,133.98,6.7202]
[1767570151194,5.62451341,134.04,133.98,6.7202]
[1767570151491,1.00156615,134.05,133.98,6.7202]
[1767570151691,5.6243723,134.04,133.98,6.7202]
[1767570151891,1.00156615,134.05,133.98,6.7202]
[1767570152082,5.62404015,134.04,133.98,6.7202]
[1767570152283,1.00156615,134.05,133.98,6.7202]
[1767570152486,5.62412891,134.04,133.98,6.7202]
[1767570152794,1.00156615,134.05,133.98,6.7202]
[1767570152994,5.62412891,134.04,133.98,6.7202]
[1767570153294,1.00156615,134.05,133.98,6.7202]
[1767570153496,5.62414059,134.04,133.98,6.7202]
[1767570153684,1.00156615,134.05,133.98,6.7202]
[1767570153884,5.62414059,134.04,133.98,6.7202]
[1767570154088,1.00156615,134.05,133.98,6.7202]
[1767570154289,5.62370872,134.04,133.98,6.7202]
[1767570154494,1.00156615,134.05,133.98,6.7202]
[1767570154695,5.62374508,134.04,133.98,6.7202]
[1767570154897,1.00156615,134.05,133.98,6.7202]
[1767570155094,5.62374508,134.04,133.98,6.7202]
[1767570155284,1.00156615,134.05,133.98,6.7202]
[1767570155488,5.62381563,134.04,133.98,6.7202]
[1767570155695,1.00156615,134.05,133.98,6.7202]
[1767570155893,5.62381563,134.04,133.98,6.7202]
[1767570156095,1.00156615,134.05,133.98,6.7202]
[1767570156299,5.62401669,134.04,133.98,6.7202]
[1767570156498,1.00156615,134.05,133.98,6.7202]
[1767570156697,5.62392521,134.04,133.98,6.7202]
[1767570156899,1.00156615,134.05,133.98,6.7202]
[1767570157098,5.62392521,134.04,133.98,6.7202]
[1767570157397,1.00156615,134.05,133.98,6.7202]
[1767570157601,5.62407003,134.04,133.98,6.7202]
[1767570157796,7.71846615,134.05,133.98,6.7202]
[1767570157990,0.89812865,134.03,133.98,6.7202]
[1767570158194,2.43758169,134.02,133.96,6.721]
[1767570158499,2.43758169,134.03,133.94,104.5711]
[1767570158696,5.62293831,134.02,133.94,104.5711]
[1767570158900,2.43758169,134.03,133.94,104.5711]
[1767570159299,2.43758169,134.03,133.97,6.7208]
[1767570162001,0.89812865,134.05,133.97,1.53945304]
[1767570162203,5.6226938,134.04,133.97,1.53945304]
[1767570162398,0.89812865,134.05,133.97,1.53945304]
[1767570162603,5.62313225,134.04,133.97,1.53945304]
[1767570162803,0.89812865,134.05,133.97,1.53945304]
[1767570163003,5.62313095,134.04,133.97,1.53945304]
[1767570163296,88.18,134.08,133.99,1.53945304]
[1767570163503,5.62509151,134.07,133.99,1.53945304]
[1767570163701,88.18,134.08,134.01,1.53945304]
[1767570164203,88.18,134.08,134.02,6.7183]
[1767570164404,89.07812865,134.08,134.02,6.7183]
[1767570166605,0.89812865,134.07,134.0,6.7193]
[1767570169303,0.89812865,134.07,134.01,6.7187]
[1767570175807,2.43758169,134.07,134.01,6.7187]
[1767570176109,6.5191142,134.06,134.01,6.7187]
[1767570176311,0.89812865,134.06,134.01,6.7187]
[1767570179910,0.89812865,134.06,133.99,6.7194]
[1767570180103,0.89812865,134.04,133.95,89.71945304]
[1767570180311,0.89812865,134.02,133.93,104.5764]
[1767570180513,2.43758169,134.02,133.93,104.5764]
[1767570180816,0.80375037,134.01,133.92,194.27975304]
[1767570181013,2.34320341,134.01,133.92,194.27975304]
[1767570182609,2.34320341,134.01,133.95,6.7218]
[1767570182808,0.80375037,134.0,133.95,6.7218]
[1767570183009,0.80375037,134.0,133.92,88.16]
[1767570183305,0.80375037,134.0,133.94,6.7223]
[1767570184517,0.80375037,134.0,133.92,94.883]
[1767570185116,0.80375037,134.0,133.93,6.7228]
[1767570190620,0.80375037,134.02,133.94,6.7221]
[1767570190924,0.80375037,134.02,133.92,88.16]
[1767570190925,0.80375037,134.05,133.93,106.98756509]
[1767570191138,6.4106502,134.04,133.93,106.98756509]
[1767570191333,6.4106502,134.04,133.96,6.7212]
[1767570191334,0.80375037,134.04,133.96,6.7212]
[1767570193340,0.80375037,134.09,133.97,195.13686509]
[1767570193541,6.41165688,134.08,133.97,195.13686509]
[1767570193837,5.60790651,134.07,133.97,195.13686509]
[1767570194040,0.80375037,134.08,134.0,6.7192]
[1767570194242,0.80375037,134.08,133.99,2.40906509]
[1767570194826,0.80375037,134.07,133.99,6.7198]
[1767570195040,0.80375037,134.07,133.98,2.40906509]
[1767570195337,0.80375037,134.07,134.0,6.7192]
[1767570195740,192.6251,134.11,133.99,104.5316]
[1767570195741,0.80375037,134.09,133.99,104.5316]
[1767570195935,6.41128374,134.08,133.98,106.94656509]
[1767570196241,0.80375037,134.08,134.0,6.7192]
[1767570199344,0.80375037,134.08,134.01,6.7187]
[1767570200437,0.80375037,134.08,133.99,6.7195]
[1767570201034,0.80375037,134.07,133.99,6.7195]
[1767570201439,6.40814096,134.06,133.99,6.7195]
[1767570201641,0.80375037,134.06,133.99,6.7195]
[1767570202234,2.40906509,134.08,133.99,6.7195]
[1767570202438,5.60412876,134.07,133.99,6.7195]
[1767570202643,3.21281546,134.08,133.99,6.7195]
[1767570202843,6.42431446,134.07,133.99,6.7195]
[1767570203140,0.80375037,134.07,133.99,6.7195]
[1767570205748,6.7155,134.08,134.0,6.7191]
[1767570205950,5.62146338,134.07,134.0,6.7191]
[1767570206140,6.7155,134.08,134.0,6.7191]
[1767570207844,7.51925037,134.08,134.0,6.7191]
[1767570208551,0.80375037,134.07,134.0,6.7191]
[1767570210058,0.80375037,134.06,133.98,6.7201]
[1767570214263,0.80375037,134.06,133.99,6.7197]
[1767570218261,0.80375037,134.06,134.0,6.7193]
[1767570220057,0.6929058,134.08,134.01,6.7188]
[1767570220271,0.6929058,134.08,133.99,104.5306]
[1767570221662,0.6929058,134.08,134.02,6.7182]
[1767570223559,0.6929058,134.08,134.0,6.719]
[1767570224660,7.4084058,134.08,134.0,6.719]
[1767570227058,7.4089058,134.07,134.0,6.719]
[1767570227459,0.6929058,134.06,134.0,6.719]
[1767570229169,0.6929058,134.06,133.98,6.7201]
[1767570230078,0.6929058,134.06,133.99,6.7198]
[1767570231564,0.6929058,134.06,133.97,94.9004]
[1767570232168,0.6929058,134.06,133.97,88.18]
[1767570232360,5.63314709,134.05,133.97,88.18]
[1767570232561,0.6929058,134.06,133.97,88.18]
[1767570232761,5.62599554,134.05,133.97,88.18]
[1767570232962,0.6929058,134.06,133.97,88.18]
[1767570233162,5.62599554,134.05,133.97,88.18]
[1767570233466,0.6929058,134.06,133.97,88.18]
[1767570233667,5.62847036,134.05,133.97,88.18]
[1767570233866,0.6929058,134.06,133.97,88.18]
[1767570234072,0.6929058,134.04,133.97,88.18]
[1767570235265,5.63328738,134.03,133.97,94.9008]
[1767570235463,7.4104058,134.04,133.97,94.9008]
[1767570235766,5.63325204,134.03,133.97,94.9008]
[1767570235961,7.4104058,134.04,133.97,94.9008]
[1767570236178,5.63326136,134.03,133.97,94.9008]
[1767570236472,7.4104058,134.04,133.98,6.7204]
[1767570236473,0.6929058,134.04,133.98,6.7204]
[1767570236674,5.63410348,134.03,133.98,6.7204]
[1767570236975,0.6929058,134.04,133.98,6.7204]
[1767570237275,5.63377055,134.03,133.98,6.7204]
[1767570237476,0.6929058,134.04,133.98,6.7204]
[1767570237774,5.63466764,134.03,133.98,6.7204]
[1767570237967,0.6929058,134.04,133.98,6.7204]
[1767570238167,5.63466764,134.03,133.98,6.7204]
[1767570238368,0.6929058,134.04,133.98,6.7204]
[1767570238574,5.63450052,134.03,133.98,6.7204]
[1767570238775,0.6929058,134.04,133.98,6.7204]
[1767570238975,5.63345691,134.03,133.98,6.7204]
[1767570239176,0.6929058,134.03,133.96,6.7212]
[1767570239383,5.62835641,134.02,133.96,6.7212]
[1767570239570,0.6929058,134.03,133.96,6.7212]
[1767570239876,5.62831748,134.02,133.96,6.7212]
[1767570240069,0.6929058,134.03,133.96,6.7212]
[1767570240270,5.62831748,134.02,133.96,6.7212]
[1767570240470,0.6929058,134.03,133.96,6.7212]
[1767570240777,5.62753178,134.02,133.96,6.7212]
[1767570240979,0.6929058,134.03,133.96,6.7212]
[1767570241974,0.6929058,134.03,133.94,90.56906509]
[1767570242280,7.39446734,134.04,133.97,6.7207]
[1767570242483,6.30073899,134.03,133.97,6.7207]
[1767570242679,0.67696734,134.03,133.97,6.7207]
[1767570244485,0.67696734,134.05,133.97,6.7207]
[1767570244782,5.62221495,134.04,133.97,6.7207]
[1767570244983,5.62221495,134.03,133.97,6.7207]
[1767570245184,0.67696734,134.04,133.97,6.7207]
[1767570245377,5.62230538,134.03,133.97,6.7207]
[1767570245678,0.67696734,134.04,133.97,6.7207]
[1767570245881,5.62221419,134.03,133.97,6.7207]
[1767570246082,0.67696734,134.04,133.97,6.7207]
[1767570246378,5.62037592,134.03,133.97,6.7207]
[1767570246577,0.67696734,134.04,133.97,6.7207]
[1767570246778,5.62019156,134.03,133.97,6.7207]
[1767570246978,0.67696734,134.04,133.97,6.7207]
[1767570247288,5.62016174,134.03,133.97,6.7207]
[1767570247479,0.67696734,134.04,133.97,6.7207]
[1767570247674,5.61983362,134.03,133.97,6.7207]
[1767570247979,0.67696734,134.04,133.97,6.7207]
[1767570248176,5.61871438,134.03,133.97,6.7207]
[1767570248377,0.67696734,134.04,133.97,6.7207]
[1767570248580,5.61842083,134.03,133.97,6.7207]
[1767570248781,0.67696734,134.04,133.97,6.7207]
[1767570248984,5.61842083,134.03,133.97,6.7207]
[1767570249282,5.61842083,134.03,133.96,1.54049792]
[1767570249283,0.67696734,134.04,133.98,6.7204]
[1767570252793,0.67696734,134.04,133.96,1.54049792]
[1767570254293,0.67696734,134.04,133.98,6.7204]
[1767570260796,6.7175,134.04,133.96,8.26169792]
[1767570260997,88.16,134.07,133.93,104.5771]
[1767570260998,0.67696734,134.02,133.93,104.5771]
[1767570261293,0.67696734,134.02,133.94,1.54049792]
[1767570261493,0.67696734,134.02,133.96,6.7213]
[1767570266194,7.39436734,134.04,133.97,6.7208]
[1767570266389,5.61932712,134.03,133.97,6.7208]
[1767570266593,0.67696734,134.03,133.97,6.7208]
[1767570266801,5.61918989,134.02,133.97,6.7208]
[1767570267002,0.67696734,134.03,133.97,6.7208]
[1767570267304,6.29615723,134.02,133.95,6.7215]
[1767570267498,0.67696734,134.02,133.95,6.7215]
[1767570268298,0.67696734,134.02,133.94,1.54049792]
[1767570268299,0.67696734,134.02,133.96,6.7213]
[1767570269305,6.29798659,134.01,133.94,8.26279792]
[1767570269510,0.67696734,134.01,133.94,6.7223]
[1767570275598,6.7185,134.02,133.95,6.7217]
[1767570275811,5.62739675,134.01,133.95,6.7217]
[1767570276004,5.62739675,134.0,133.95,6.7217]
[1767570276298,7.34949725,134.02,133.95,6.7217]
[1767570276497,5.62752752,134.01,133.95,6.7217]
[1767570276712,5.62752752,134.0,133.95,6.7217]
[1767570276905,7.34949725,134.02,133.95,6.7217]
[1767570277107,5.62752752,134.01,133.95,6.7217]
[1767570277312,5.62752752,134.0,133.95,6.7217]
[1767570277500,7.34949725,134.02,133.95,6.7217]
[1767570277705,5.62781735,134.01,133.95,6.7217]
[1767570277915,5.62781735,134.0,133.95,6.7217]
[1767570278104,0.63099725,134.0,133.93,6.7224]
[1767570278307,5.62748629,133.99,133.93,6.7224]
[1767570278609,0.63099725,134.0,133.94,6.7223]
[1767570278811,5.62748629,133.99,133.94,6.7223]
[1767570279017,0.63099725,134.0,133.94,6.7223]
[1767570279221,5.62751067,133.99,133.94,6.7223]
[1767570279407,0.63099725,134.0,133.94,6.7223]
[1767570279713,5.62667691,133.99,133.94,6.7223]
[1767570279902,0.63099725,134.0,133.94,6.7223]
[1767570280107,5.62666473,133.99,133.94,6.7223]
[1767570280312,0.63099725,134.0,133.94,6.7223]
[1767570286722,0.63099725,134.0,133.95,6.7219]
[1767570288022,5.62219025,133.99,133.95,6.7219]
[1767570288220,0.63099725,134.0,133.95,6.7219]
[1767570288424,5.62120575,133.99,133.95,6.7219]
[1767570288719,0.63099725,134.0,133.95,6.7219]
[1767570288920,5.62120172,133.99,133.95,6.7219]
[1767570289116,0.63099725,134.0,133.95,6.7219]
[1767570289322,5.62043907,133.99,133.94,6.722]
[1767570289524,0.63099725,134.0,133.94,6.722]
[1767570289723,5.62112176,133.99,133.94,6.722]
[1767570289922,0.63099725,134.0,133.94,6.722]
[1767570290125,5.62113667,133.99,133.94,6.722]
[1767570290320,0.63099725,134.0,133.94,6.722]
[1767570290527,5.62051932,133.99,133.94,6.722]
[1767570290726,0.63099725,134.0,133.94,6.722]
[1767570290924,6.2514902,133.99,133.92,8.26339792]
[1767570291126,0.63099725,133.99,133.92,8.26339792]
[1767570291427,5.61967923,133.98,133.92,8.26339792]
[1767570291623,0.63099725,133.99,133.92,8.26339792]
[1767570291822,5.61967923,133.98,133.92,8.26339792]
[1767570292015,0.63099725,133.99,133.92,8.26339792]
[1767570292216,5.62008857,133.98,133.92,8.26339792]
[1767570292519,0.63099725,133.99,133.92,8.26339792]
[1767570292826,5.61263038,133.98,133.92,8.26339792]
[1767570293025,0.63099725,133.99,133.92,8.26339792]
[1767570293220,5.61264845,133.98,133.92,8.26339792]
[1767570293424,0.63099725,133.99,133.92,8.26339792]
[1767570293725,5.61208127,133.98,133.93,6.7229]
[1767570293924,0.63099725,133.99,133.93,6.7229]
[1767570294128,5.61208127,133.98,133.93,6.7229]
[1767570294423,0.63099725,133.99,133.93,6.7229]
[1767570296027,7.35039725,134.0,133.93,6.7229]
[1767570296219,5.61129774,133.99,133.93,6.7229]
[1767570296417,2.17149517,134.0,133.93,6.7229]
[1767570296725,6.24235237,133.99,133.93,6.7229]
[1767570296923,0.63099725,133.99,133.93,6.7229]
[1767570299430,7.35099725,133.99,133.91,8.26399792]
[1767570299628,7.35099725,133.99,133.91,1.54049792]
[1767570300123,6.7205,133.98,133.9,88.2]
[1767570300332,7.35149725,133.98,133.9,89.74049792]
[1767570301530,7.35149725,133.98,133.91,6.7238]
[1767570301730,0.61481419,133.95,133.88,1.54049792]
[1767570302334,0.61481419,133.95,133.87,6.7257]
[1767570302630,0.61481419,133.93,133.86,1.54049792]
[1767570302827,7.14195335,133.94,133.86,1.54049792]
[1767570302828,0.61481419,133.95,133.86,1.54049792]
[1767570304537,7.33711419,133.95,133.87,6.7258]
[1767570308636,0.61481419,133.94,133.87,6.7258]
[1767570312839,0.61481419,133.94,133.84,195.25738084]
[1767570312840,0.61481419,133.94,133.88,6.7253]
[1767570313731,0.61481419,133.94,133.86,6.726]
[1767570315144,0.61481419,133.94,133.87,6.7259]
[1767570316833,6.7209,133.98,133.88,107.02718084]
[1767570317037,0.61481419,134.0,133.9,2.41078084]
[1767570317644,0.61481419,134.0,133.92,6.7233]
[1767570318347,6.20715086,133.99,133.92,6.7233]
[1767570318549,0.61481419,133.99,133.92,6.7233]
[1767570319744,7.33481419,133.99,133.92,6.7233]
[1767570322448,6.72,133.99,133.92,6.7233]
[1767570323355,7.33481419,133.99,133.92,6.7233]
[1767570327055,0.61481419,133.97,133.88,195.24718084]
[1767570327255,0.61481419,133.97,133.86,104.6288]
[1767570327460,106.94638084,133.99,133.85,195.27238084]
[1767570327461,0.61481419,133.95,133.85,195.27238084]
[1767570327962,0.61481419,133.95,133.88,6.7253]
[1767570330455,7.31670508,133.98,133.87,107.03378084]
[1767570330756,5.59523641,133.97,133.87,107.03378084]
[1767570330956,6.7207,133.98,133.89,2.41078084]
[1767570331862,7.31670508,133.98,133.89,2.41078084]
[1767570332659,7.31670508,133.98,133.91,6.7237]
[1767570333168,0.59600508,133.98,133.92,6.7233]
[1767570336872,0.5697817,133.97,133.88,88.22]
[1767570337062,2.98056254,133.97,133.86,104.6306]
[1767570337262,0.5697817,133.95,133.86,192.8506]
[1767570338274,0.5697817,133.95,133.88,6.7252]
[1767570339672,7.2917817,133.95,133.88,6.7252]
[1767570341675,0.5697817,133.94,133.88,6.7252]
[1767570346081,0.5697817,133.94,133.86,94.946]
[1767570346270,0.5697817,133.94,133.86,88.22]
[1767570346470,0.5697817,133.93,133.82,127.0617]
[1767570346772,0.5697817,133.93,133.83,88.22]
[1767570347174,0.5697817,133.92,133.83,88.22]
[1767570347480,6.16464765,133.91,133.83,88.22]
[1767570347681,0.5697817,133.91,133.83,88.22]
[1767570348286,7.2937817,133.91,133.84,6.7273]
[1767570350286,7.2937817,133.91,133.83,88.22]
[1767570350287,7.2930817,133.93,133.85,6.7266]
[1767570350680,0.5697817,133.92,133.85,6.7266]
[1767570354289,0.5697817,133.92,133.86,6.7263]
[1767570358198,0.5697817,133.91,133.84,6.727]
[1767570359791,7.2937817,133.91,133.84,6.727]
[1767570360395,0.57829929,133.9,133.83,88.22]
[1767570361395,0.57829929,133.88,133.8,6.729]
[1767570362795,6.726,133.87,133.8,6.729]
[1767570363189,7.30429929,133.87,133.78,94.9701]
[1767570363393,0.57829929,133.86,133.78,88.24]
[1767570363691,0.57829929,133.86,133.78,192.9321]
[1767570364695,0.57829929,133.86,133.81,6.7288]
[1767570366896,0.57829929,133.88,133.81,6.7288]
[1767570372196,88.24,133.89,133.83,6.7278]
[1767570373193,0.57829929,133.92,133.82,1.54446192]
[1767570373404,0.57829929,133.92,133.84,1.54446192]
[1767570374604,0.57829929,133.92,133.85,6.7268]
[1767570376607,0.57829929,133.92,133.86,6.7263]
[1767570376809,0.57829929,133.92,133.87,0.05197849]
[1767570377106,0.57829929,133.94,133.87,6.77767849]
[1767570377493,0.57829929,133.94,133.88,1.54446192]
[1767570378695,0.57829929,133.94,133.88,8.26976192]
[1767570378899,88.26,133.97,133.88,1.54446192]
[1767570378900,0.57829929,133.96,133.88,1.54446192]
[1767570379505,0.57829929,133.96,133.87,1.54446192]
[1767570380709,0.57829929,133.96,133.88,6.7253]
[1767570384213,0.57829929,133.95,133.88,6.7253]
[1767570390114,0.57829929,133.94,133.87,1.54446192]
[1767570390420,2.12276121,133.94,133.86,6.7261]
[1767570391620,8.84526121,133.94,133.86,6.7261]
[1767570394327,0.56244288,133.92,133.86,6.7261]
[1767570400127,0.55417059,133.95,133.84,1.54446192]
[1767570400433,0.55417059,133.97,133.88,1.54446192]
[1767570401523,0.55417059,133.96,133.89,6.7248]
[1767570402335,0.55417059,133.96,133.87,104.6226]
[1767570402336,0.55417059,133.93,133.87,6.7255]
[1767570403123,0.55417059,133.93,133.85,8.27126192]
[1767570403323,2.09863251,133.92,133.83,89.78446192]
[1767570403728,2.09863251,133.92,133.83,1.54446192]
[1767570403930,2.09863251,133.92,133.83,89.78446192]
[1767570404736,8.82213251,133.92,133.84,6.7273]
[1767570405732,7.27817059,133.91,133.84,6.7273]
[1767570406233,8.82323251,133.9,133.82,6.7282]
[1767570406840,0.55417059,133.89,133.8,88.24]
[1767570407143,1.54446192,133.88,133.8,94.969]
[1767570407330,2.09863251,133.88,133.8,94.969]
[1767570408626,8.82433251,133.88,133.8,94.969]
[1767570410346,0.55417059,133.87,133.8,94.969]
[1767570410633,2.09863251,133.86,133.78,6.7301]
[1767570412138,8.82643251,133.84,133.74,6.7322]
[1767570412343,0.55417059,133.83,133.74,8.27666192]
[1767570413138,0.55417059,133.83,133.74,6.7322]
[1767570413341,0.55417059,133.83,133.74,8.27666192]
[1767570414152,0.55417059,133.83,133.75,6.7318]
[1767570414351,0.55417059,133.85,133.76,1.54446192]
[1767570414846,0.55417059,133.83,133.75,6.7316]
[1767570415041,0.55417059,133.83,133.75,8.27606192]
[1767570418841,0.55417059,133.83,133.76,6.7313]
[1767570420540,88.26,133.86,133.78,6.7301]
[1767570420541,0.52208475,133.86,133.78,6.7301]
[1767570420846,0.52208475,133.86,133.79,1.54446192]
[1767570421044,0.52208475,133.88,133.79,1.54446192]
[1767570421344,88.28,133.89,133.81,1.54446192]
[1767570421739,0.52208475,133.9,133.81,1.54446192]
[1767570421940,0.52208475,133.9,133.83,1.54446192]
[1767570423243,0.52208475,133.9,133.83,8.27226192]
[1767570425951,0.52208475,133.9,133.83,6.7278]
[1767570426141,0.52208475,133.88,133.81,6.7286]
[1767570427239,0.52208475,133.88,133.78,195.38482893]
[1767570427240,0.52208475,133.9,133.82,6.7283]
[1767570429552,0.52208475,133.89,133.8,6.7292]
[1767570430556,7.24768475,133.88,133.8,6.7292]
[1767570432659,6.7262,133.87,133.78,97.42332893]
[1767570432851,0.52208475,133.86,133.78,90.69302893]
[1767570433050,0.52208475,133.86,133.78,88.28]
[1767570433557,0.52208475,133.86,133.79,6.7297]
[1767570435957,0.52208475,133.88,133.8,6.7292]
[1767570436349,0.52208475,133.88,133.8,2.41302893]
[1767570437650,0.52208475,133.88,133.81,6.7288]
[1767570440758,0.52208475,133.88,133.79,6.7296]
[1767570442557,7.24768475,133.88,133.79,6.7296]
[1767570443061,7.24768475,133.88,133.8,6.7293]
[1767570444663,0.52208475,133.87,133.8,6.7293]
[1767570445368,0.52208475,133.86,133.78,95.0103]
[1767570446165,0.52208475,133.86,133.79,6.7298]
[1767570449265,0.52208475,133.85,133.77,6.7306]
[1767570450468,0.52208475,133.84,133.77,6.7306]
[1767570452373,0.51681533,133.86,133.78,6.7302]
[1767570452871,7.24331533,133.86,133.78,6.7302]
[1767570454371,0.51681533,133.85,133.78,6.7302]
[1767570455976,0.51681533,133.85,133.79,6.7298]
[1767570458670,0.51565218,133.87,133.76,107.12182893]
[1767570458871,5.56315968,133.86,133.8,6.7292]
[1767570459175,88.81565218,133.87,133.8,6.7292]
[1767570459372,5.56364829,133.86,133.8,6.7292]
[1767570459670,88.81565218,133.87,133.8,6.7292]
[1767570459873,5.56377468,133.86,133.8,6.7292]
[1767570460170,0.51565218,133.86,133.8,6.7292]
[1767570461067,88.3,133.87,133.81,6.7288]
[1767570461275,5.56437293,133.86,133.81,6.7288]
[1767570461468,88.3,133.87,133.81,6.7288]
[1767570461666,5.5649511,133.86,133.81,6.7288]
[1767570461868,88.3,133.87,133.81,6.7288]
[1767570462069,7.24135218,133.88,133.81,6.7288]
[1767570462070,5.5649511,133.86,133.81,6.7288]
[1767570462270,7.24135218,133.88,133.81,6.7288]
[1767570462478,5.56555625,133.87,133.81,6.7288]
[1767570462669,5.56555625,133.86,133.81,6.7288]
[1767570462870,7.24135218,133.88,133.81,6.7288]
[1767570463069,5.56555153,133.87,133.81,6.7288]
[1767570463274,5.56555153,133.86,133.81,6.7288]
[1767570463473,7.24135218,133.88,133.81,6.7288]
[1767570463668,5.5624725,133.87,133.81,6.7288]
[1767570463872,7.24135218,133.88,133.81,6.7288]
[1767570464069,5.56303516,133.87,133.81,6.7288]